[Event "Early-Titled-Tuesday-Blitz-February-27-2024"]
[Site "Chess.com"]
[Date "2024.02.27"]
[Round "1"]
[White "Andrey_Klymchuk"]
[Black "Preobrazhenska_D2011"]
[Result "0-1"]
[WhiteElo "2712"]
[BlackElo "2431"]
[TimeControl "180+1"]
[EndTime "8:09:23 PST"]
[Termination "Preobrazhenska_D2011 won by checkmate"]

1. e4 {[%clk 0:03:00.9]} 1... c5 {[%clk 0:02:56.8]} 2. Nf3 {[%clk 0:03:00.5]}
2... d6 {[%clk 0:02:55.8]} 3. d4 {[%clk 0:03:00.5]} 3... cxd4 {[%clk 0:02:56.7]}
4. Nxd4 {[%clk 0:03:01.1]} 4... Nf6 {[%clk 0:02:57.1]} 5. f3 {[%clk 0:02:59.8]}
5... e5 {[%clk 0:02:56.6]} 6. Bb5+ {[%clk 0:02:59.7]} 6... Nbd7 {[%clk
0:02:52.3]} 7. Nf5 {[%clk 0:02:59.8]} 7... Qc7 {[%clk 0:02:45.9]} 8. Nc3 {[%clk
0:02:58.5]} 8... a6 {[%clk 0:02:43.5]} 9. Ba4 {[%clk 0:02:58]} 9... b5 {[%clk
0:02:32.9]} 10. Bb3 {[%clk 0:02:57.3]} 10... Bb7 {[%clk 0:02:30.6]} 11. Bg5
{[%clk 0:02:55.4]} 11... h6 {[%clk 0:02:28]} 12. Bh4 {[%clk 0:02:53.6]} 12... g6
{[%clk 0:02:18.6]} 13. Ne3 {[%clk 0:02:53.4]} 13... Bg7 {[%clk 0:02:15.2]} 14.
Ncd5 {[%clk 0:02:35.9]} 14... Nxd5 {[%clk 0:01:55.7]} 15. Nxd5 {[%clk
0:02:34.9]} 15... Bxd5 {[%clk 0:01:41.9]} 16. Qxd5 {[%clk 0:02:33.8]} 16... Nb6
{[%clk 0:01:36.4]} 17. Qd3 {[%clk 0:02:32.7]} 17... O-O {[%clk 0:01:35.9]} 18.
O-O-O {[%clk 0:02:30.9]} 18... Nc4 {[%clk 0:01:32]} 19. Bxc4 {[%clk 0:01:51.4]}
19... bxc4 {[%clk 0:01:32.9]} 20. Qxd6 {[%clk 0:01:51.2]} 20... Qa5 {[%clk
0:01:31.7]} 21. Qa3 {[%clk 0:01:36.6]} 21... Qc7 {[%clk 0:01:24.5]} 22. Be1
{[%clk 0:01:32.3]} 22... Rab8 {[%clk 0:01:09.7]} 23. Qd6 {[%clk 0:01:16.2]}
23... Qb7 {[%clk 0:01:07.3]} 24. Bc3 {[%clk 0:01:16.2]} 24... Rfe8 {[%clk
0:01:06.1]} 25. Qd5 {[%clk 0:01:08.2]} 25... Qc7 {[%clk 0:01:02.5]} 26. Qd7
{[%clk 0:01:07.5]} 26... Qc5 {[%clk 0:01:01]} 27. Rd2 {[%clk 0:00:57.2]} 27...
h5 {[%clk 0:00:59.1]} 28. Rd5 {[%clk 0:00:48.4]} 28... Qe3+ {[%clk 0:00:55.7]}
29. Kd1 {[%clk 0:00:39.8]} 29... Bf6 {[%clk 0:00:52.7]} 30. Qc6 {[%clk
0:00:31.1]} 30... Re6 {[%clk 0:00:37.6]} 31. Qc7 {[%clk 0:00:28.1]} 31... Rbe8
{[%clk 0:00:33.7]} 32. Rf1 {[%clk 0:00:27.9]} 32... R6e7 {[%clk 0:00:30.4]} 33.
Qxc4 {[%clk 0:00:26.8]} 33... Qb6 {[%clk 0:00:29.7]} 34. Kc1 {[%clk 0:00:25.1]}
34... Rc7 {[%clk 0:00:29.9]} 35. Qd3 {[%clk 0:00:22.6]} 35... Rec8 {[%clk
0:00:30.2]} 36. Rd6 {[%clk 0:00:19.8]} 36... Bg5+ {[%clk 0:00:30.6]} 37. Kd1
{[%clk 0:00:19.3]} 37... Qc5 {[%clk 0:00:29.8]} 38. Rd5 {[%clk 0:00:18.6]} 38...
Qe7 {[%clk 0:00:26.8]} 39. Ke2 {[%clk 0:00:18.4]} 39... Bf6 {[%clk 0:00:25.1]}
40. Rd1 {[%clk 0:00:18.5]} 40... Qe6 {[%clk 0:00:23.8]} 41. Rd6 {[%clk
0:00:18.2]} 41... Qe7 {[%clk 0:00:24.2]} 42. Rd7 {[%clk 0:00:18.6]} 42... Rxd7
{[%clk 0:00:23.9]} 43. Qxd7 {[%clk 0:00:19.5]} 43... Qc5 {[%clk 0:00:24.7]} 44.
Qd5 {[%clk 0:00:19.3]} 44... Qb6 {[%clk 0:00:25]} 45. Rd3 {[%clk 0:00:19.3]}
45... Bg7 {[%clk 0:00:24.9]} 46. Qd6 {[%clk 0:00:19.6]} 46... Qb5 {[%clk
0:00:24.6]} 47. Qd5 {[%clk 0:00:19.3]} 47... Rc5 {[%clk 0:00:24.1]} 48. Qd8+
{[%clk 0:00:18.6]} 48... Kh7 {[%clk 0:00:24.9]} 49. Qd6 {[%clk 0:00:17.4]} 49...
Rc6 {[%clk 0:00:22.2]} 50. Qe7 {[%clk 0:00:17.6]} 50... Qc4 {[%clk 0:00:20.2]}
51. b3 {[%clk 0:00:17]} 51... Qb5 {[%clk 0:00:15.7]} 52. a4 {[%clk 0:00:16.8]}
52... Qb6 {[%clk 0:00:13.3]} 53. Qxf7 {[%clk 0:00:17.2]} 53... Rc7 {[%clk
0:00:13.3]} 54. Rd7 {[%clk 0:00:15.8]} 54... Rxd7 {[%clk 0:00:13.8]} 55. Qxd7
{[%clk 0:00:16]} 55... Qc5 {[%clk 0:00:14.2]} 56. Qd3 {[%clk 0:00:15.5]} 56...
Qg1 {[%clk 0:00:13.7]} 57. Qd2 {[%clk 0:00:14.8]} 57... Qxg2+ {[%clk 0:00:14]}
58. Kd1 {[%clk 0:00:15.4]} 58... Qxf3+ {[%clk 0:00:07.3]} 59. Qe2 {[%clk
0:00:15.5]} 59... Qxc3 {[%clk 0:00:07]} 60. Qxa6 {[%clk 0:00:15]} 60... Qa1+
{[%clk 0:00:07.1]} 61. Ke2 {[%clk 0:00:14.9]} 61... Qg1 {[%clk 0:00:07.5]} 62.
Qd3 {[%clk 0:00:14.9]} 62... Qg2+ {[%clk 0:00:08.2]} 63. Kd1 {[%clk 0:00:15]}
63... Qh1+ {[%clk 0:00:08.1]} 64. Kd2 {[%clk 0:00:15.4]} 64... Bh6+ {[%clk
0:00:08.2]} 65. Kc3 {[%clk 0:00:16.3]} 65... Qa1+ {[%clk 0:00:08.5]} 66. Kc4
{[%clk 0:00:16.6]} 66... Qa3 {[%clk 0:00:05.2]} 67. c3 {[%clk 0:00:15.7]} 67...
Qe7 {[%clk 0:00:04.9]} 68. Qd5 {[%clk 0:00:15.7]} 68... Qc7+ {[%clk 0:00:05.2]}
69. Kd3 {[%clk 0:00:16]} 69... Bg7 {[%clk 0:00:05.6]} 70. b4 {[%clk 0:00:16.4]}
70... Qa7 {[%clk 0:00:05.3]} 71. a5 {[%clk 0:00:16.7]} 71... Qg1 {[%clk
0:00:05]} 72. Kc4 {[%clk 0:00:16.6]} 72... Qf1+ {[%clk 0:00:05.1]} 73. Qd3
{[%clk 0:00:16.8]} 73... Qf7+ {[%clk 0:00:04.9]} 74. Kb5 {[%clk 0:00:17]} 74...
Qb7+ {[%clk 0:00:05.1]} 75. Ka4 {[%clk 0:00:17.1]} 75... Qc6+ {[%clk 0:00:05.5]}
76. b5 {[%clk 0:00:17.4]} 76... Qc5 {[%clk 0:00:06]} 77. a6 {[%clk 0:00:17.8]}
77... Bf8 {[%clk 0:00:06.6]} 78. Kb3 {[%clk 0:00:17.5]} 78... Qa3+ {[%clk
0:00:06.4]} 79. Kc2 {[%clk 0:00:18.4]} 79... Qa2+ {[%clk 0:00:07]} 80. Kd1
{[%clk 0:00:19]} 80... Qa1+ {[%clk 0:00:07.4]} 81. Ke2 {[%clk 0:00:19.4]} 81...
Qb2+ {[%clk 0:00:07.9]} 82. Kf3 {[%clk 0:00:19.9]} 82... Qc1 {[%clk 0:00:06.3]}
83. Qd7+ {[%clk 0:00:19.4]} 83... Kh6 {[%clk 0:00:05.5]} 84. Qd3 {[%clk
0:00:18.9]} 84... Qf4+ {[%clk 0:00:05.9]} 85. Kg2 {[%clk 0:00:18.5]} 85... Bc5
{[%clk 0:00:06.3]} 86. h3 {[%clk 0:00:17.6]} 86... Qf2+ {[%clk 0:00:06.6]} 87.
Kh1 {[%clk 0:00:18.2]} 87... Qg1# {[%clk 0:00:06.9]} 0-1

[Event "Early-Titled-Tuesday-Blitz-February-27-2024"]
[Site "Chess.com"]
[Date "2024.02.27"]
[Round "1"]
[White "Boundless_Strike"]
[Black "LionKing2367890"]
[Result "1-0"]
[WhiteElo "2606"]
[BlackElo "2245"]
[TimeControl "180+1"]
[EndTime "8:09:36 PST"]
[Termination "Boundless_Strike won by resignation"]

1. d4 {[%clk 0:02:57.6]} 1... Nf6 {[%clk 0:02:58.9]} 2. f3 {[%clk 0:02:57.3]}
2... d5 {[%clk 0:02:58.6]} 3. e4 {[%clk 0:02:57.3]} 3... dxe4 {[%clk 0:02:51.2]}
4. Nc3 {[%clk 0:02:55.8]} 4... exf3 {[%clk 0:02:42.5]} 5. Nxf3 {[%clk
0:02:55.4]} 5... Bg4 {[%clk 0:02:41.8]} 6. h3 {[%clk 0:02:55.1]} 6... Bxf3
{[%clk 0:02:41.4]} 7. Qxf3 {[%clk 0:02:54.8]} 7... c6 {[%clk 0:02:41.7]} 8. g4
{[%clk 0:02:54.3]} 8... e6 {[%clk 0:02:40]} 9. g5 {[%clk 0:02:53.4]} 9... Nd5
{[%clk 0:02:39.9]} 10. Bd3 {[%clk 0:02:52.6]} 10... g6 {[%clk 0:02:31.9]} 11.
Ne4 {[%clk 0:02:11.9]} 11... Bg7 {[%clk 0:02:29.5]} 12. c3 {[%clk 0:02:05.4]}
12... O-O {[%clk 0:02:20.7]} 13. h4 {[%clk 0:01:45.3]} 13... e5 {[%clk
0:02:15.6]} 14. Bd2 {[%clk 0:01:32.8]} 14... exd4 {[%clk 0:01:49.7]} 15. c4
{[%clk 0:01:31.9]} 15... f5 {[%clk 0:01:39.6]} 16. gxf6 {[%clk 0:01:17.3]} 16...
Nxf6 {[%clk 0:01:39.2]} 17. O-O-O {[%clk 0:01:04.6]} 17... Nbd7 {[%clk
0:01:26.9]} 18. Qh3 {[%clk 0:00:40.5]} 18... Nxe4 {[%clk 0:01:19.4]} 19. Bxe4
{[%clk 0:00:39.9]} 19... Nc5 {[%clk 0:01:16.2]} 20. h5 {[%clk 0:00:22.7]} 20...
Nxe4 {[%clk 0:00:39.7]} 21. Qe6+ {[%clk 0:00:15.7]} 21... Rf7 {[%clk 0:00:38.5]}
22. hxg6 {[%clk 0:00:14]} 22... hxg6 {[%clk 0:00:37.8]} 23. Qxe4 {[%clk
0:00:11.5]} 23... Qf6 {[%clk 0:00:32.3]} 24. Rdg1 {[%clk 0:00:08.1]} 24... Qf5
{[%clk 0:00:28.4]} 25. Qg2 {[%clk 0:00:03.6]} 25... Qd3 {[%clk 0:00:20.4]} 26.
Qh2 {[%clk 0:00:02.5]} 26... Qxc4+ {[%clk 0:00:19.2]} 27. Kb1 {[%clk 0:00:02.5]}
27... Qd3+ {[%clk 0:00:19.7]} 28. Ka1 {[%clk 0:00:03.1]} 28... Re8 {[%clk
0:00:19.6]} 29. Qh7+ {[%clk 0:00:01.6]} 29... Kf8 {[%clk 0:00:19.9]} 30. Bc1
{[%clk 0:00:02.4]} 30... Qf5 {[%clk 0:00:15.5]} 31. Rxg6 {[%clk 0:00:02.3]}
31... Re5 {[%clk 0:00:10.1]} 32. Bh6 {[%clk 0:00:02.4]} 32... Bxh6 {[%clk
0:00:09.7]} 33. Qxh6+ {[%clk 0:00:03]} 33... Ke7 {[%clk 0:00:10.1]} 34. Rgg1
{[%clk 0:00:03.5]} 34... Qf6 {[%clk 0:00:09.3]} 35. Qh2 {[%clk 0:00:02.9]} 35...
Qe6 {[%clk 0:00:09.4]} 36. Qd2 {[%clk 0:00:02.9]} 36... c5 {[%clk 0:00:09.4]}
37. Qc2 {[%clk 0:00:02.8]} 37... Kd7 {[%clk 0:00:09.8]} 38. Qa4+ {[%clk
0:00:02.7]} 38... Qc6 {[%clk 0:00:08]} 39. Qxa7 {[%clk 0:00:03.2]} 39... Rfe7
{[%clk 0:00:08.5]} 40. Qa5 {[%clk 0:00:02.7]} 40... b6 {[%clk 0:00:06.5]} 41.
Qa7+ {[%clk 0:00:02.8]} 41... Kd6 {[%clk 0:00:06.1]} 42. Qb8+ {[%clk 0:00:03]}
42... Qc7 {[%clk 0:00:06]} 43. Qh8 {[%clk 0:00:03.3]} 43... Qb7 {[%clk
0:00:06.3]} 44. a3 {[%clk 0:00:03.4]} 44... b5 {[%clk 0:00:05.4]} 45. Rh6+
{[%clk 0:00:03.7]} 45... R5e6 {[%clk 0:00:04.6]} 46. Rhh1 {[%clk 0:00:03.8]}
46... b4 {[%clk 0:00:04.3]} 47. Qh2+ {[%clk 0:00:04]} 47... Kd7 {[%clk
0:00:04.4]} 48. Rb1 {[%clk 0:00:03.9]} 48... bxa3 {[%clk 0:00:03.7]} 49. bxa3
{[%clk 0:00:04.1]} 49... Rb6 {[%clk 0:00:02.9]} 50. Qa2 {[%clk 0:00:04.1]} 50...
Rxb1+ {[%clk 0:00:02.4]} 51. Rxb1 {[%clk 0:00:05]} 51... Qc6 {[%clk 0:00:03.3]}
52. Qb3 {[%clk 0:00:05.2]} 52... Re3 {[%clk 0:00:03.4]} 53. Qf7+ {[%clk
0:00:05.3]} 53... Kd6 {[%clk 0:00:02.8]} 54. Qf6+ {[%clk 0:00:05.7]} 54... Kc7
{[%clk 0:00:03.2]} 55. Qf7+ {[%clk 0:00:05.7]} 55... Qd7 {[%clk 0:00:03.6]} 56.
Rb7+ {[%clk 0:00:05.5]} 56... Kxb7 {[%clk 0:00:04.1]} 57. Qxd7+ {[%clk
0:00:05.8]} 57... Kb6 {[%clk 0:00:05]} 58. Qd6+ {[%clk 0:00:05.7]} 58... Kb5
{[%clk 0:00:05.1]} 59. Kb2 {[%clk 0:00:06.3]} 59... Re2+ {[%clk 0:00:05]} 60.
Kb3 {[%clk 0:00:06.5]} 60... Re3+ {[%clk 0:00:05.5]} 61. Kc2 {[%clk 0:00:06.8]}
61... Rxa3 {[%clk 0:00:05.5]} 62. Qd7+ {[%clk 0:00:07.2]} 62... Kc4 {[%clk
0:00:05.7]} 63. Qf7+ {[%clk 0:00:07.4]} 63... Kb4 {[%clk 0:00:06.2]} 64. Qe8
{[%clk 0:00:07.1]} 64... Rc3+ {[%clk 0:00:06.1]} 65. Kd2 {[%clk 0:00:07.4]}
65... Ra3 {[%clk 0:00:06.5]} 66. Qb8+ {[%clk 0:00:07.6]} 66... Kc4 {[%clk
0:00:07]} 67. Qb2 {[%clk 0:00:07.9]} 67... Rb3 {[%clk 0:00:06.2]} 68. Qa2 {[%clk
0:00:07.3]} 68... Kb4 {[%clk 0:00:06.4]} 69. Kc2 {[%clk 0:00:07.8]} 69... Rc3+
{[%clk 0:00:06.5]} 70. Kb2 {[%clk 0:00:07.6]} 70... Re3 {[%clk 0:00:06.7]} 71.
Qf7 {[%clk 0:00:07.1]} 71... Re2+ {[%clk 0:00:07]} 72. Kc1 {[%clk 0:00:07.7]}
72... Re3 {[%clk 0:00:06.2]} 73. Kd2 {[%clk 0:00:07.5]} 73... Ra3 {[%clk
0:00:05.9]} 74. Qb7+ {[%clk 0:00:07.2]} 74... Kc4 {[%clk 0:00:06.1]} 75. Ke2
{[%clk 0:00:07.8]} 75... Ra2+ {[%clk 0:00:05.8]} 76. Kf3 {[%clk 0:00:08.3]}
76... Ra3+ {[%clk 0:00:05.5]} 77. Ke2 {[%clk 0:00:08.2]} 77... Ra2+ {[%clk
0:00:05.8]} 78. Kd1 {[%clk 0:00:08.8]} 78... Ra1+ {[%clk 0:00:06.3]} 79. Kc2
{[%clk 0:00:09.3]} 79... Ra2+ {[%clk 0:00:06.8]} 80. Kb1 {[%clk 0:00:09.8]}
80... Ra3 {[%clk 0:00:07.3]} 81. Kb2 {[%clk 0:00:10.1]} 81... Rc3 {[%clk
0:00:07]} 82. Qb6 {[%clk 0:00:10.1]} 82... d3 {[%clk 0:00:06.6]} 83. Qa6+ {[%clk
0:00:09.9]} 83... Kd4 {[%clk 0:00:06.8]} 84. Qf6+ {[%clk 0:00:10.2]} 1-0

[Event "Early-Titled-Tuesday-Blitz-February-27-2024"]
[Site "Chess.com"]
[Date "2024.02.27"]
[Round "2"]
[White "GMG"]
[Black "jamengrand"]
[Result "1/2-1/2"]
[WhiteElo "2694"]
[BlackElo "2377"]
[TimeControl "180+1"]
[EndTime "8:11:55 PST"]
[Termination "Game drawn by repetition"]

1. d4 {[%clk 0:02:59.6]} 1... d5 {[%clk 0:02:58.6]} 2. c4 {[%clk 0:02:59.4]}
2... e6 {[%clk 0:02:59]} 3. Nf3 {[%clk 0:02:59.3]} 3... Nf6 {[%clk 0:02:59.3]}
4. Nc3 {[%clk 0:02:59]} 4... c5 {[%clk 0:02:59.2]} 5. cxd5 {[%clk 0:02:56.5]}
5... Nxd5 {[%clk 0:03:00.1]} 6. e4 {[%clk 0:02:55.4]} 6... Nxc3 {[%clk
0:03:00.2]} 7. bxc3 {[%clk 0:02:56.3]} 7... cxd4 {[%clk 0:03:00.7]} 8. cxd4
{[%clk 0:02:56.8]} 8... Bb4+ {[%clk 0:03:01.3]} 9. Bd2 {[%clk 0:02:57.2]} 9...
Bxd2+ {[%clk 0:03:02]} 10. Qxd2 {[%clk 0:02:58.1]} 10... O-O {[%clk 0:03:02.3]}
11. Bc4 {[%clk 0:02:57.9]} 11... Nd7 {[%clk 0:03:02.6]} 12. O-O {[%clk
0:02:57.6]} 12... b6 {[%clk 0:03:03]} 13. Rad1 {[%clk 0:02:57.1]} 13... Bb7
{[%clk 0:03:02.5]} 14. Rfe1 {[%clk 0:02:54.9]} 14... Rc8 {[%clk 0:03:01.9]} 15.
Bb3 {[%clk 0:02:54.8]} 15... h6 {[%clk 0:03:01.6]} 16. h3 {[%clk 0:02:27.1]}
16... Re8 {[%clk 0:02:58.7]} 17. Qf4 {[%clk 0:02:22.3]} 17... Qc7 {[%clk
0:02:50.1]} 18. Qh4 {[%clk 0:02:20]} 18... Qd8 {[%clk 0:02:48.9]} 19. Qf4 {[%clk
0:02:16.1]} 19... Qc7 {[%clk 0:02:48.9]} 20. Qh4 {[%clk 0:02:15.5]} 20... Qd8
{[%clk 0:02:48.7]} 21. Qf4 {[%clk 0:02:10.5]} 1/2-1/2

[Event "Early-Titled-Tuesday-Blitz-February-27-2024"]
[Site "Chess.com"]
[Date "2024.02.27"]
[Round "2"]
[White "Sjakkerntobi"]
[Black "lluiss"]
[Result "1-0"]
[WhiteElo "2486"]
[BlackElo "2176"]
[TimeControl "180+1"]
[EndTime "8:12:17 PST"]
[Termination "Sjakkerntobi won by resignation"]

1. e4 {[%clk 0:03:00.9]} 1... e6 {[%clk 0:02:58.4]} 2. d4 {[%clk 0:03:01.2]}
2... d5 {[%clk 0:02:58.4]} 3. Nc3 {[%clk 0:03:02]} 3... Nf6 {[%clk 0:02:57.5]}
4. e5 {[%clk 0:03:02.3]} 4... Nfd7 {[%clk 0:02:57.4]} 5. f4 {[%clk 0:03:03.2]}
5... b6 {[%clk 0:02:56.2]} 6. Nf3 {[%clk 0:03:03.9]} 6... Ba6 {[%clk 0:02:55.7]}
7. Bxa6 {[%clk 0:03:02.8]} 7... Nxa6 {[%clk 0:02:56.6]} 8. O-O {[%clk
0:03:03.4]} 8... g6 {[%clk 0:02:53.8]} 9. Qe2 {[%clk 0:02:40.4]} 9... Nb4 {[%clk
0:02:50.7]} 10. a3 {[%clk 0:02:39.4]} 10... Nc6 {[%clk 0:02:50.7]} 11. b4 {[%clk
0:02:39.8]} 11... h5 {[%clk 0:02:48.7]} 12. Be3 {[%clk 0:02:37.3]} 12... Be7
{[%clk 0:02:48.3]} 13. Nd1 {[%clk 0:02:23.2]} 13... Qc8 {[%clk 0:02:33.7]} 14.
Nf2 {[%clk 0:02:19.2]} 14... Kf8 {[%clk 0:02:23.7]} 15. c4 {[%clk 0:02:18.9]}
15... dxc4 {[%clk 0:02:22.4]} 16. Qxc4 {[%clk 0:02:19.8]} 16... Qb7 {[%clk
0:02:22.5]} 17. Rac1 {[%clk 0:02:17.7]} 17... Rc8 {[%clk 0:02:19.3]} 18. Qxc6
{[%clk 0:02:16.6]} 18... Qxc6 {[%clk 0:02:15.9]} 19. Rxc6 {[%clk 0:02:17.5]} 1-0

[Event "Early-Titled-Tuesday-Blitz-February-27-2024"]
[Site "Chess.com"]
[Date "2024.02.27"]
[Round "2"]
[White "xakevicius91"]
[Black "xamax2000"]
[Result "0-1"]
[WhiteElo "2573"]
[BlackElo "2843"]
[TimeControl "180+1"]
[EndTime "8:12:43 PST"]
[Termination "xamax2000 won by resignation"]

1. e4 {[%clk 0:03:00.9]} 1... e5 {[%clk 0:02:59]} 2. Nf3 {[%clk 0:03:00.9]} 2...
Nc6 {[%clk 0:02:59.5]} 3. d4 {[%clk 0:03:00.3]} 3... exd4 {[%clk 0:02:59.5]} 4.
Nxd4 {[%clk 0:03:01.2]} 4... Bc5 {[%clk 0:02:59.5]} 5. Nb3 {[%clk 0:03:01.4]}
5... Bb6 {[%clk 0:02:59.4]} 6. Nc3 {[%clk 0:03:01.2]} 6... Nf6 {[%clk
0:02:57.6]} 7. Qe2 {[%clk 0:03:01.2]} 7... O-O {[%clk 0:02:56.6]} 8. Be3 {[%clk
0:03:01.1]} 8... d5 {[%clk 0:02:50.5]} 9. Bxb6 {[%clk 0:02:47.7]} 9... axb6
{[%clk 0:02:49.2]} 10. O-O-O {[%clk 0:02:48.4]} 10... d4 {[%clk 0:02:43.9]} 11.
Nd5 {[%clk 0:02:45.4]} 11... Nxd5 {[%clk 0:02:23.3]} 12. exd5 {[%clk 0:02:46.3]}
12... Qxd5 {[%clk 0:02:22.3]} 13. a3 {[%clk 0:02:42]} 13... Be6 {[%clk 0:02:08]}
14. Qb5 {[%clk 0:02:23.1]} 14... Qd6 {[%clk 0:02:01.7]} 15. Bc4 {[%clk
0:02:10.4]} 15... Na7 {[%clk 0:01:50.2]} 16. Qb4 {[%clk 0:02:10.3]} 16... Qxb4
{[%clk 0:01:49.8]} 0-1

[Event "Early-Titled-Tuesday-Blitz-February-27-2024"]
[Site "Chess.com"]
[Date "2024.02.27"]
[Round "2"]
[White "Onischuk_V"]
[Black "SaiAgni_98"]
[Result "1-0"]
[WhiteElo "2797"]
[BlackElo "2554"]
[TimeControl "180+1"]
[EndTime "8:12:50 PST"]
[Termination "Onischuk_V won by resignation"]

1. e4 {[%clk 0:02:57]} 1... c5 {[%clk 0:02:59.9]} 2. Nf3 {[%clk 0:02:53.4]} 2...
g6 {[%clk 0:03:00]} 3. h4 {[%clk 0:02:51.2]} 3... h5 {[%clk 0:02:53.3]} 4. d4
{[%clk 0:02:42.1]} 4... Bg7 {[%clk 0:02:53]} 5. dxc5 {[%clk 0:02:37.8]} 5...
Qa5+ {[%clk 0:02:53.1]} 6. Nc3 {[%clk 0:02:31]} 6... Qxc5 {[%clk 0:02:45]} 7.
Nd5 {[%clk 0:02:28.3]} 7... d6 {[%clk 0:02:27.1]} 8. b4 {[%clk 0:02:19]} 8...
Bc3+ {[%clk 0:02:12.6]} 9. Bd2 {[%clk 0:02:15.1]} 9... Bxd2+ {[%clk 0:01:54.9]}
10. Qxd2 {[%clk 0:02:15]} 10... Qc6 {[%clk 0:01:50.6]} 11. Bb5 {[%clk
0:02:14.2]} 11... Na6 {[%clk 0:01:45.4]} 12. Bxc6+ {[%clk 0:02:06.2]} 12... bxc6
{[%clk 0:01:46.3]} 13. Qc3 {[%clk 0:02:06.3]} 1-0

[Event "Early-Titled-Tuesday-Blitz-February-27-2024"]
[Site "Chess.com"]
[Date "2024.02.27"]
[Round "2"]
[White "the_blue_pill"]
[Black "ukchessbomber"]
[Result "0-1"]
[WhiteElo "2395"]
[BlackElo "2662"]
[TimeControl "180+1"]
[EndTime "8:13:12 PST"]
[Termination "ukchessbomber won by resignation"]

1. b3 {[%clk 0:03:00.9]} 1... b6 {[%clk 0:02:53.7]} 2. Nf3 {[%clk 0:02:54]} 2...
Bb7 {[%clk 0:02:54.6]} 3. g3 {[%clk 0:02:54.4]} 3... g6 {[%clk 0:02:54]} 4. Bb2
{[%clk 0:02:53.5]} 4... Nf6 {[%clk 0:02:54.8]} 5. Bg2 {[%clk 0:02:53]} 5... Bg7
{[%clk 0:02:55.2]} 6. O-O {[%clk 0:02:51.4]} 6... c5 {[%clk 0:02:55.4]} 7. d4
{[%clk 0:02:49.2]} 7... cxd4 {[%clk 0:02:55.7]} 8. Nxd4 {[%clk 0:02:38.6]} 8...
Bxg2 {[%clk 0:02:56.6]} 9. Kxg2 {[%clk 0:02:38.4]} 9... O-O {[%clk 0:02:57.2]}
10. c4 {[%clk 0:02:35.4]} 10... Nc6 {[%clk 0:02:55.7]} 11. Nd2 {[%clk
0:02:07.8]} 11... Nxd4 {[%clk 0:02:54.6]} 12. Bxd4 {[%clk 0:02:07.3]} 12... d5
{[%clk 0:02:55.5]} 13. cxd5 {[%clk 0:02:02.7]} 13... Qxd5+ {[%clk 0:02:54.7]}
14. Nf3 {[%clk 0:02:03.2]} 14... Rfd8 {[%clk 0:02:55.2]} 15. Rc1 {[%clk
0:01:50.7]} 15... Qe4 {[%clk 0:02:31.8]} 16. Rc3 {[%clk 0:01:39.2]} 16... e5
{[%clk 0:02:26.8]} 17. Re3 {[%clk 0:01:37.7]} 17... Rxd4 {[%clk 0:02:19]} 18.
Qxd4 {[%clk 0:01:22]} 18... exd4 {[%clk 0:02:17.8]} 0-1

[Event "Early-Titled-Tuesday-Blitz-February-27-2024"]
[Site "Chess.com"]
[Date "2024.02.27"]
[Round "2"]
[White "MattyDPerrine"]
[Black "pirulillo"]
[Result "1-0"]
[WhiteElo "2501"]
[BlackElo "2213"]
[TimeControl "180+1"]
[EndTime "8:13:15 PST"]
[Termination "MattyDPerrine won by resignation"]

1. e4 {[%clk 0:03:00.9]} 1... c5 {[%clk 0:02:59]} 2. Nf3 {[%clk 0:03:00.8]} 2...
e6 {[%clk 0:02:58.7]} 3. c3 {[%clk 0:02:54.7]} 3... d5 {[%clk 0:02:56.3]} 4.
exd5 {[%clk 0:02:55.6]} 4... Qxd5 {[%clk 0:02:55.3]} 5. d4 {[%clk 0:02:55.8]}
5... Nf6 {[%clk 0:02:55.4]} 6. Na3 {[%clk 0:02:49.3]} 6... a6 {[%clk 0:02:47.6]}
7. Nc4 {[%clk 0:02:45.1]} 7... Qd8 {[%clk 0:02:37.9]} 8. a4 {[%clk 0:02:42.4]}
8... cxd4 {[%clk 0:02:32.8]} 9. Qxd4 {[%clk 0:02:42.1]} 9... Qxd4 {[%clk
0:02:31.7]} 10. Nxd4 {[%clk 0:02:43]} 10... Nbd7 {[%clk 0:02:31]} 11. Bf4 {[%clk
0:02:40.8]} 11... e5 {[%clk 0:02:25]} 12. Nxe5 {[%clk 0:02:40.4]} 12... Nxe5
{[%clk 0:02:23.3]} 13. Bxe5 {[%clk 0:02:40.5]} 13... Be7 {[%clk 0:02:19.6]} 14.
Be2 {[%clk 0:02:29.9]} 14... O-O {[%clk 0:02:18.6]} 15. Bf3 {[%clk 0:02:20.9]}
15... Re8 {[%clk 0:02:17.1]} 16. O-O {[%clk 0:02:14.6]} 16... Bd8 {[%clk
0:02:05.4]} 17. Rfe1 {[%clk 0:02:11.4]} 17... Nd7 {[%clk 0:01:58.5]} 18. Bg3
{[%clk 0:02:05.9]} 18... Kf8 {[%clk 0:01:45]} 19. Bd6+ {[%clk 0:02:03.2]} 19...
Be7 {[%clk 0:01:43.7]} 20. Rxe7 {[%clk 0:02:03.1]} 20... Rxe7 {[%clk 0:01:43.9]}
21. Re1 {[%clk 0:01:59.1]} 1-0

[Event "Early-Titled-Tuesday-Blitz-February-27-2024"]
[Site "Chess.com"]
[Date "2024.02.27"]
[Round "2"]
[White "PLAYER_2006_M"]
[Black "Zavgorodniy_Sergiy"]
[Result "1-0"]
[WhiteElo "3006"]
[BlackElo "2631"]
[TimeControl "180+1"]
[EndTime "8:13:33 PST"]
[Termination "PLAYER_2006_M won by resignation"]

1. e4 {[%clk 0:03:00.9]} 1... c6 {[%clk 0:03:00.1]} 2. Nf3 {[%clk 0:03:00.2]}
2... d5 {[%clk 0:03:01]} 3. Nc3 {[%clk 0:03:00.5]} 3... Bg4 {[%clk 0:03:01]} 4.
h3 {[%clk 0:02:59.9]} 4... Bxf3 {[%clk 0:03:01.3]} 5. Qxf3 {[%clk 0:03:00.8]}
5... dxe4 {[%clk 0:03:01.7]} 6. Nxe4 {[%clk 0:02:59.6]} 6... Nd7 {[%clk
0:03:01.8]} 7. d4 {[%clk 0:02:56.9]} 7... Ngf6 {[%clk 0:03:01.5]} 8. Bd3 {[%clk
0:02:57.3]} 8... Nxe4 {[%clk 0:02:58.7]} 9. Qxe4 {[%clk 0:02:58.2]} 9... Nf6
{[%clk 0:02:58.9]} 10. Qe3 {[%clk 0:02:58.9]} 10... e6 {[%clk 0:02:59.3]} 11.
O-O {[%clk 0:02:59.2]} 11... Be7 {[%clk 0:02:59.7]} 12. Rd1 {[%clk 0:02:59.3]}
12... O-O {[%clk 0:02:59.8]} 13. c3 {[%clk 0:02:59.9]} 13... Nd5 {[%clk
0:02:59.7]} 14. Qf3 {[%clk 0:03:00.1]} 14... b5 {[%clk 0:02:57.5]} 15. a4 {[%clk
0:02:58.4]} 15... a6 {[%clk 0:02:57.5]} 16. g3 {[%clk 0:02:58.1]} 16... g6
{[%clk 0:02:55.8]} 17. Bh6 {[%clk 0:02:56.6]} 17... Re8 {[%clk 0:02:55.8]} 18.
h4 {[%clk 0:02:57.2]} 18... Bf8 {[%clk 0:02:52.7]} 19. Bg5 {[%clk 0:02:57.5]}
19... Be7 {[%clk 0:02:53]} 20. Bd2 {[%clk 0:02:57.2]} 20... Bf6 {[%clk
0:02:50.4]} 21. Kg2 {[%clk 0:02:57.2]} 21... h5 {[%clk 0:02:49.8]} 22. Be4
{[%clk 0:02:53]} 22... Kg7 {[%clk 0:02:48]} 23. Be1 {[%clk 0:02:48.2]} 23... Qd6
{[%clk 0:02:45.4]} 24. b3 {[%clk 0:02:43.2]} 24... Red8 {[%clk 0:02:33.1]} 25.
c4 {[%clk 0:02:34.8]} 25... bxc4 {[%clk 0:02:30.4]} 26. bxc4 {[%clk 0:02:35.7]}
26... Ne7 {[%clk 0:02:30.6]} 27. Rab1 {[%clk 0:02:32.6]} 27... Rab8 {[%clk
0:02:21.5]} 28. Ba5 {[%clk 0:02:32.3]} 28... Rxb1 {[%clk 0:02:06.4]} 29. Rxb1
{[%clk 0:02:33.2]} 29... Rb8 {[%clk 0:02:05.9]} 30. c5 {[%clk 0:02:32]} 1-0